Cogmind - Beta 16 @@@ ROGUE MODE // 2025.12.16 @ 14:17:55 Player: AngelSpirit Result: Destroyed by UL-Q5W(R) with Subdweller Machine Gun Performance ------------- Evolutions (0) 0 Regions Visited (2) 400 Robots Destroyed (20) 100 Value Destroyed (401) 401 Prototype IDs (0) 0 Alien Tech Used (0) 0 Bonus (0) 0 TOTAL SCORE: 901 Bonus ------- None Cogmind --------- Core Integrity 0/250 Matter 300/300 Energy 99/100 System Corruption 0% Temperature Cool (0) Movement Rolling (119) Ox2 Location -10/Subcaves Parts ------- > --- POWER (1) -------- (None) > --- PROPULSION (2) --- Wheel Subdweller Monowheel > --- UTILITY (2) ------ Huge Storage Unit > --- WEAPON (2) ------- Medium Laser Subdweller Machine Gun > --- INVENTORY (25) --- Light Ion Engine Light Treads Subdweller Monowheel Heat Sink Medium Matter Pod (100) Medium Laser Peak State ------------ > --- POWER ------------ Subdweller Power Source > --- PROPULSION ------- Wheel Subdweller Monowheel > --- UTILITY ---------- Huge Storage Unit Core Shielding > --- WEAPON ----------- Medium Laser Subdweller Machine Gun > --- INVENTORY -------- Light Ion Engine Light Treads Subdweller Monowheel Heat Sink Medium Matter Pod Medium Laser [Rating: 10] Favorites ----------- Power Ion Engine Engine Ion Engine Propulsion Wheel Wheel Wheel Utility Core Shielding Storage Huge Storage Unit Protection Core Shielding Weapon Medium Laser Energy Gun Medium Laser Energy Cannon Beam Cannon Ballistic Gun Light Assault Rifle Build | -11 -10 -10 ------- Run | Yrd Mat Sub Slots Evolved . | . . . Power . | . . . Propulsion . | . . . Utility . | . . . Weapon . | . . . Parts Attached 28 | 6 14 8 Power 6 | 1 2 3 Engine 6 | 1 2 3 Core . | . . . Reactor . | . . . Propulsion 9 | 2 4 3 Treads . | . . . Leg . | . . . Wheel 9 | 2 4 3 Hover . | . . . Flight . | . . . Utility 5 | 1 4 . Device . | . . . Storage 3 | 1 2 . Processor . | . . . Hackware . | . . . Protection 2 | . 2 . Artifact . | . . . Weapon 8 | 2 4 2 Energy Gun 5 | 2 2 1 Energy Cannon 1 | . 1 . Ballistic Gun 2 | . 1 1 Ballistic Cannon . | . . . Launcher . | . . . Special Weapon . | . . . Impact Weapon . | . . . Slashing Weapon . | . . . Piercing Weapon . | . . . Special Melee Weapon . | . . . Unidentified Prototypes . | . . . Parts Lost 14 | . 6 8 Power 4 | . 1 3 Propulsion 6 | . 3 3 Utility 1 | . . 1 Weapon 3 | . 2 1 Highest Loss Streak 5 | . 5 5 To Critical Strikes . | . . . Average Backups 5 | . 5 7 Power 1 | . . 1 Propulsion 2 | . 2 1 Utility 1 | . 1 2 Weapon 1 | . . 1 Tool/Special . | . . . Unused Backups 7 | . 2 5 Power . | . . . Propulsion 3 | . 1 2 Utility 2 | . . 2 Weapon 2 | . 1 1 Tool/Special . | . . . Average Slot Usage (%) 93 | . 90 97 Engine 13 | . 13 13 Wheel 26 | . 27 25 Storage 12 | . 11 14 Protection 13 | . 13 14 Energy Gun 15 | . 15 14 Energy Cannon 1 | . 1 . Ballistic Gun 8 | . 5 14 Peak Build Rating 10 | 6 7 10 Average Rating 6 | 4 6 7 On Entrance 4 | . 6 7 Avg Prop Armor Cover (%) . | . . . Naked Turns . | . . . Heaviest Build 92 | 12 89 92 Greatest Support 30 | 26 26 30 Greatest Overweight (x) 8 | . 8 8 Average Overweight (x) 2 | . 1 2 Largest Inventory Capacity 25 | 8 25 25 Average Capacity 20 | 7 18 25 Most Carried 9 | 1 9 8 Average Carried 6 | . 5 7 Final Capacity 25 | 8 25 25 Final Carried 8 | . 8 6 Class Distribution -------------------- 61% | Scavenger-Mutant 38% | Mutant Dominant Class ---------------- Scavenger-Mutant | -10/Materials Scavenger-Mutant | -10/Subcaves Resources | -11 -10 -10 ----------- Run | Yrd Mat Sub Matter Collected 521 | 226 211 84 Remotely . | . . . Salvage Created 577 | . 465 112 Parts 43 | . 36 7 Haulers Intercepted 1 | . 1 . Recyclers Shooed . | . . . Parts Field Recycled . | . . . Retrieved Matter . | . . . Parts Self-Destructed . | . . . Prevented . | . . . Parts Restored . | . . . Kills | -11 -10 -10 ------- Run | Yrd Mat Sub Combat Hostiles Destroyed 12 | . 9 3 Guns 10 | . 7 3 Cannons 1 | . 1 . AOE 1 | . 1 . Classes Destroyed 8 | . 7 1 Worker 2 | . 2 . Builder 2 | . 2 . Hauler 1 | . 1 . Operator 1 | . 1 . Watcher 2 | . 2 . Swarmer 5 | . 5 . Grunt 4 | . 4 . Subdweller 3 | . . 3 Best Kill Streak 3 | . 3 2 Combat Bots Only 3 | . 3 2 Max Kills in Single Turn 2 | . 2 1 Gunslinging . | . . . Exploded 1 | . 1 . Melee . | . . . Uniques/NPCs Destroyed . | . . . Combat | -11 -10 -10 -------- Run | Yrd Mat Sub Hostile Shots Fired 106 | . 66 40 Missed 27 | . 14 13 Hits 79 | . 52 27 Projectile 79 | . 52 27 Critical Strikes 1 | . . 1 Damage Taken 1403 | . 678 725 Core 257 | . 124 133 Absorbed by Shields . | . . . Redirected to Shielding 53 | . 24 29 Core Remaining (%) 100 | 100 . . Volleys Fired 75 | . 55 20 Largest 2 | . 2 2 Hottest 100 | . 100 80 Shots Fired 133 | . 93 40 Gun 115 | . 75 40 Cannon 18 | . 18 . Launcher . | . . . Special . | . . . Kinetic 33 | . 13 20 Thermal 73 | . 53 20 Explosive . | . . . Electromagnetic 27 | . 27 . Robot Hit Streak 19 | . 7 19 Robot Miss Streak 4 | . 4 3 Penetration Max . | . . . Secondary Targets 1 | . . 1 Max Gunslinging Chain 1 | . . 1 Shots Hit Robots 82 | . 52 30 Core Hits 33 | . 23 10 Critical Kills . | . . . Critical Parts Destroyed . | . . . Critical Strikes 8 | . 5 3 Burn 6 | . 3 3 Corrupt 2 | . 2 . Melee Attacks . | . . . Impact . | . . . Slashing . | . . . Piercing . | . . . Sneak Attacks . | . . . Combat Hostiles . | . . . Follow-up Attacks . | . . . Damage Inflicted 1178 | . 794 384 Guns 921 | . 537 384 Cannons 192 | . 192 . Explosions 65 | . 65 . Melee . | . . . Ramming . | . . . Kinetic 215 | . 44 171 Thermal 719 | . 506 213 Explosive . | . . . Electromagnetic 244 | . 244 . Impact . | . . . Slashing . | . . . Piercing . | . . . Highest Corruption . | . . . Average Corruption . | . . . Corruption Purged . | . . . Corruption Blocked . | . . . Overload Shots . | . . . Overflow Damage . | . . . Projectiles . | . . . Explosions . | . . . Melee . | . . . Knockbacks . | . . . Impact . | . . . Kinetic . | . . . Secondary . | . . . Self-Inflicted Damage 58 | . 58 . Shots 2 | . 2 . Rammed . | . . . Targets Rammed . | . . . Kicked . | . . . Crushed . | . . . Highest Temperature 376 | . 376 4 Average Temperature 93 | . 94 4 Received Heat Transfer 276 | . 249 27 Effects 2 | . 2 . Shutdowns 1 | . 1 . Short Circuit 1 | . 1 . Siege Activations . | . . . Martial Activations . | . . . Shielding Activations . | . . . Robots Disrupted . | . . . Combat Hostiles . | . . . Robots Corrupted . | . . . Combat Hostiles . | . . . Parts Fried . | . . . Impact Corruptions . | . . . Robots Melted . | . . . Combat Hostiles . | . . . Parts Melted 3 | . 2 1 Heat Transferred 2213 | . 1362 851 Parts Sabotaged . | . . . Parts Stolen . | . . . Parts Stripped . | . . . Power Chain Reactions 2 | . 2 . Alert | -11 -10 -10 ------- Run | Yrd Mat Sub Maximum Alert Level . | . . . Low Security (%) 100 | 100 100 . Level 1 . | . . . Level 2 . | . . . Level 3 . | . . . Level 4 . | . . . Level 5 . | . . . High Security . | . . . Max Security . | . . . Peak Influence 153 | . 153 . Initial . | . . . Average 57 | . 60 . Influence Increases 415 | . 415 . Destroy 0b10 Robot/C 180 | . 180 . Destroy 0b10 Robot/NC 40 | . 40 . Destroy Leader 36 | . 36 . Successful Hack 23 | . 23 . Disable Machine 30 | . 30 . Destroy Structure 16 | . 16 . Lose Combat Pursuer 90 | . 90 . Influence Decreases 415 | . 405 10 Entered New Map 6 | . . 6 Time Decay 349 | . 345 4 Lost Part 60 | . 60 . Squads Dispatched 2 | . 2 . Investigation 1 | . 1 . Extermination . | . . . Reinforcement 1 | . 1 . Assault . | . . . Garrison . | . . . Intercept . | . . . Searches Triggered . | . . . Construction Impeded . | . . . Haulers Reinforced . | . . . Active Scanning Responses . | . . . Cargo Convoy Interrupts . | . . . Stealth | -11 -10 -10 --------- Run | Yrd Mat Sub Distress Signals 1 | . 1 . Communications Jammed . | . . . Distress Signals . | . . . Times Spotted 25 | . 20 5 Peak Tracking Total 5 | . 5 2 Tactical Retreats 4 | . 4 . Traps | -11 -10 -10 ------- Run | Yrd Mat Sub Traps Triggered 4 | . 2 2 Indirectly . | . . . Trap Hack Attempts . | . . . Triggered . | . . . Disarmed . | . . . Reprogrammed . | . . . Reused . | . . . Traps Extracted . | . . . Installed . | . . . Triggered . | . . . Machines | -11 -10 -10 ---------- Run | Yrd Mat Sub Machines Disabled 2 | . 2 . Max in Single Turn 1 | . 1 . Machines Repaired . | . . . Machines Dismantled . | . . . Machines Sabotaged . | . . . Overloaded Fab Kills . | . . . Hacking | -11 -10 -10 --------- Run | Yrd Mat Sub Machines Accessed 7 | . 7 . Terminals 5 | . 5 . Fabricators . | . . . Repair Stations . | . . . Recycling Units 2 | . 2 . Scanalyzers . | . . . Garrison Access . | . . . Total Hacks 23 | . 23 . Successful 8 | . 8 . Failed 15 | . 15 . Catastrophic 5 | . 5 . Database Lockouts . | . . . Manual 14 | . 14 . Terminals 20 | . 20 . Fabricators . | . . . Repair Stations . | . . . Recycling Units 3 | . 3 . Scanalyzers . | . . . Garrison Access . | . . . Terminal Hacks 5 | . 5 . Robot Analysis 2 | . 2 . Locate Traps 1 | . 1 . Registered Prototypes 1 | . 1 . Zone Layout 1 | . 1 . Fabricator Hacks . | . . . Repair Station Hacks . | . . . Recycling Unit Hacks 1 | . 1 . Retrieve Components 1 | . 1 . Scanalyzer . | . . . Garrison Access Hacks . | . . . Unauthorized Hacks 2 | . 2 . Terminals 2 | . 2 . Botnet 1 | . 1 . Operators 1 | . 1 . Fabricators . | . . . Repair Stations . | . . . Recycling Units . | . . . Scanalyzers . | . . . Garrison Access . | . . . Data Cores Recovered . | . . . Used . | . . . Hacking Detections 6 | . 6 . Full Trace Events 1 | . 1 . Feedback Events . | . . . Feedback Blocked . | . . . Robot Schematics Acquired . | . . . Robots Built . | . . . Authchips . | . . . Time . | . . . Total Robot Build Rating . | . . . Part Schematics Acquired . | . . . Parts Built . | . . . Authchips . | . . . Time . | . . . Total Part Build Rating . | . . . Part Studies Acquired . | . . . Parts Repaired . | . . . Time . | . . . Parts Recycled . | . . . Recycled Matter . | . . . Retrieved Matter . | . . . Retrieved Components 2 | . 2 . Parts Scanalyzed . | . . . Part Schematics Acquired . | . . . Parts Damaged . | . . . Bothacking | -11 -10 -10 ------------ Run | Yrd Mat Sub Used RIF Installer . | . . . Robots Hacked . | . . . Non-combat . | . . . Combat . | . . . Robot Hacks Applied . | . . . Relay Couplers Released . | . . . Fabnet Peak Effective % . | . . . Robots Rewired . | . . . Allies Hacked . | . . . Hacks Repelled . | . . . Allies | -11 -10 -10 -------- Run | Yrd Mat Sub Total Allies . | . . . Largest Group . | . . . Highest-Rated Group . | . . . Highest-Rated Ally . | . . . Total Orders . | . . . Ally Attacks . | . . . Total Damage . | . . . Kills . | . . . Allies Corrupted . | . . . Allies Melted . | . . . Intel | -11 -10 -10 ------- Run | Yrd Mat Sub Active Infowar (turns) . | . . . Robot Analysis Total 2 | . 2 . Derelict Logs Recovered 1 | . . 1 Drone Launches . | . . . Drone Recoveries . | . . . Exploration | -11 -10 -10 ------------- Run | Yrd Mat Sub Turns Passed 1367 | 37 876 454 Spaces Moved 910 | 32 591 287 Core 1 | 1 . . Treads . | . . . Legs . | . . . Wheels 909 | 31 591 287 Hover . | . . . Flight . | . . . Fastest Speed 50 | 50 80 119 Average Speed 116 | 87 111 129 Slowest Speed 200 | 90 200 200 Overloaded Moves . | . . . Propulsion Burnouts . | . . . Robots Hopped . | . . . Potential Cave-ins . | . . . Cave-ins Triggered . | . . . Exploration Rate (%) 38 | 3 85 27 Regions Visited 2 Branch Regions 1 Pre-discovered Areas 1 | . . 1 Known Exits Taken . | . . . Unknown Exits Taken 2 | 1 1 . Scrap Searched . | . . . Spaces Dug . | . . . Terrain Destroyed 17 | . 17 . Melee . | . . . Projectile . | . . . AOE 17 | . 17 . Terrain Rammed . | . . . Walls Destroyed . | . . . Machines Disabled . | . . . Actions | -11 -10 -10 --------- Run | Yrd Mat Sub Total 1084 | 38 716 330 Wait 41 | . 29 12 Move 908 | 31 590 287 Hop . | . . . Pick Up 19 | 1 16 2 Fast Attach 13 | 5 5 3 Attach 11 | 1 6 4 Detach 1 | . 1 . Swap 6 | . 5 1 Drop 10 | . 9 1 Fire 75 | . 55 20 Melee . | . . . Ram . | . . . Kick . | . . . Crush . | . . . Escape Stasis . | . . . Rewire . | . . . Trap . | . . . Miscellaneous . | . . . Route ------- -11/Scrapyard -10/Materials (discovered 4 exits: [*Mat x2] / [*Min] / [*Sub]) -10/Subcaves (discovered 1 exit: [*Mat]) History --------- Turn | Location | Event 16 | -11/Scrapyard | Discovered new exit (range 15) 38 | -11/Scrapyard | Entered Materials 310 | -10/Materials | Build established: Mutant 411 | -10/Materials | Lost 5 parts (1p3n1w) 447 | -10/Materials | Discovered new exit (range 16) 709 | -10/Materials | Discovered new exit (range 16) 710 | -10/Materials | Build established: Scavenger-Mutant 773 | -10/Materials | Discovered new exit (range 7) 902 | -10/Materials | Discovered new exit (range 8) 914 | -10/Materials | Entered Subcaves 915 | -10/Subcaves | Approached by a straggling Scientist 1011 | -10/Subcaves | Discovered new exit (range 15) 1055 | -10/Subcaves | Disturbed a concealed Subdweller 1115 | -10/Subcaves | A swath of the cavern ceiling suddenly collapsed 1264 | -10/Subcaves | Core integrity fell below 50% 1294 | -10/Subcaves | Lost 5 parts (2p2n1w) 1359 | -10/Subcaves | Core integrity fell below 20% 1368 | -10/Subcaves | Destroyed by UL-Q5W(R) with Subdweller Machine Gun Last Messages --------------- 01288_ Acquired Sub. Machine Gun. 01291_ Acquired Sub. Monowheel. 01292_ Acquired 10 matter. 01294_ Acquired Sub. Power Source. 01297_ Acquired 10 matter. 01300_ Triggered Piercing Trap. 01300_ Spikes shoot up from the floor. 01300_ Critical hit (Impale). 01311_ Triggered Shrapnel Trap. 01311_ An expanding cloud of shrapnel blasts out in all directions. AR-B1E(c): "I think it's somewhere northwest of here" 01327_ AR-B1E(c) triggered Piercing Trap. 01327_ Spikes shoot up from the floor. 01327_ AR-B1E(c) suffers critical hit (Impale). 01363_ UL-Q5W(R) suffers critical hit (Burn). 01366_ Sub. Power Source destroyed. 01368_ Core Shielding destroyed. Map ----- +----------------------------------------------------+ | ?????????????????????????????????????????????????? | | ?????????????????????????????????????????????????? | | ?????????????????????????????????????????????????? | | ?????????????????????????????????????????????????? | | ?????????????????????????????????????????????????? | | ?????????????????????????????????????????????????? | | ?????????????????????????????????????????????????? | | ????????????????????????? ???????????????????????? | | ???????????????????????? ???????????????????????? | | ??????????????????????? " ???????????????????????? | | ???????????????????????" ???????????????????????? | | ??????????????????????? ???????????????????????? | | ??????????????????????? ???????????????????????? | | ??????????????????????# ????????????????????????? | | ??????????????????????# ????????????????????????? | | ????????????? ??????## ????????????????????????? | | ???????????? ?????# ????????????????????????? | | ????????????? ##### ????????????????????????? | | ??????????????? " ????????????????????????? | | ????????????????? " #????????????????????????? | | ??????????????????? ????????????????????????? | | ??????????????# ???# R###??????????????????????? | | ??????????????# "### R #??###?????????????##??? | | ??????????????# " ### #### ??? ? | | ?????????????#"" #?? ?? | | ?????????????## ### @ #???? ?? | | ??????????????# ??# ### #????? ??? | | ????????????# ???# ##??? #####????? ??? | | ???????????# #???## #??????#####????? #??? | | ???????????# #???## ####???# ##???? ##?? | | ???????????# ##????# #???# ###### #?? | | ???????????# ???????# ###### ## #?? | | ???????????? ????????# ## ## #??? | | ?????????????????????## #??? | | ??????????????????????## ## ##??? | | ???????????????????????# ## #### #" ##### | | ???????????????????????########??#####""" ## | | ?????????????????????????????????????## "" | | ??????????????????????????????????????#### | | ?????????????????????????????????????????### | | ???????????????????????????????????????????## & | | ????????????????????????????????????????????# [ % | | ????????????????????????????????????????????# # # | | ???????????????????????????????????????????# # | | ??????????????????????????????????????????# # | | ??????????????????????????????????????????## | | ??????????????????????????????????????????# # | | ??????????????????????????????????????????## | | ???????????????????????????????????????????# | | ??????????????????????????????????????????? # # | +----------------------------------------------------+ Best States ------------- Heat Dissipation 25 Energy Generation 15 Energy Capacity 250 Matter Stores 300 Matter Capacity 300 Sight Range 16 Terrain Scan Density 10 Core Shielding 20 Power Shielding 33 Evasion (%) 44 Item Schematics ----------------- None Robot Schematics ------------------ None Fabricated ------------ Nothing Repaired ---------- Nothing Studied --------- None Alien Tech Used ----------------- None Achievements -------------- None Challenges ------------ None Game ------ Seed RefineryInsulatedProjector Manual? 0 Play Time 00:12:48 Cumulative 295.7 hours Start 2025.12.16 @ 14:06:51 End 2025.12.16 @ 14:17:55 Sessions 1 Manual Loads 0 Difficulty Rogue Special Mode None Game No. 104 Rogue 104 Adventurer 0 Explorer 0 Win Type - Total 2 Types 1/0/0/0/0/0/0/0/0/1 Lore% 73 Gallery% 68 Achievement% 57 Wizard Run 0 Options --------- Layout 1 ASCII 0 Keyboard 0 Movement Mouse Keybinds 0 Fullscreen 2 Font 32/SmallcapsGlow Map View 50x35 Zoom Use 0% Tactical HUD 1 Map Filters NONE Filters NONE Steam 1 RUN: 6d9c4c11-b524-48a7-b833-d801f9d2c316